fUST/lending_fUST_20250707
["ID","MTS","AMOUNT","RATE_DAILY","PERIOD"]
[370066218,1751872278324,-460.0,0.00019102,2]
[370066219,1751872278334,-151.0,0.00019102,2]
[370066220,1751872278343,-151.0,0.00019102,2]
[370066221,1751872278352,-196.921775,0.00019102,2]
[370066222,1751872278361,-151.0,0.00019102,2]
[370066223,1751872278371,-151.0,0.00019102,2]
[370066224,1751872278380,-151.0,0.00019102,2]
[370066225,1751872278390,-563.281708,0.00019102,2]
[370066226,1751872278400,-563.281708,0.00019102,2]
[370066227,1751872278410,-460.0,0.00019103,2]
[370066228,1751872278419,-460.0,0.00019103,2]
[370066229,1751872278429,-460.0,0.00019103,2]
[370066230,1751872278438,-460.0,0.00019103,2]
[370066231,1751872278447,-460.0,0.00019103,2]
[370066232,1751872278457,-460.0,0.00019103,2]
[370066233,1751872278466,-460.0,0.00019103,2]
[370066234,1751872278476,-460.0,0.00019103,2]
[370066235,1751872278485,-460.0,0.00019103,2]
[370066236,1751872278495,-589.6839843,0.00019103,2]
[370066237,1751872278504,-460.0,0.00019104,2]
[370066238,1751872278513,-460.0,0.00019104,2]
[370066239,1751872278523,-460.0,0.00019104,2]
[370066240,1751872278532,-460.0,0.00019104,2]
[370066241,1751872278542,-460.0,0.00019104,2]
[370066242,1751872278551,-460.0,0.00019104,2]
[370066243,1751872278560,-1275.37,0.00019104,2]
[370066244,1751872278570,-460.0,0.00019104,2]
[370066245,1751872278579,-460.0,0.00019104,2]
[370066246,1751872278590,-460.0,0.00019104,2]
[370066247,1751872278600,-2407.95,0.00019104,2]
[370066248,1751872278610,-460.0,0.00019104,2]
[370066249,1751872278620,-460.0,0.00019104,2]
[370066250,1751872278629,-1160.62,0.00019104,2]
[370066251,1751872278639,-460.0,0.00019104,2]
[370066252,1751872278649,-460.0,0.00019104,2]
[370066253,1751872278658,-2007.9,0.00019104,2]
[370066254,1751872278667,-1039.66,0.00019104,2]
[370066255,1751872278676,-460.0,0.00019104,2]
[370066256,1751872278685,-6036.19,0.00019104,2]
[370066257,1751872278695,-460.0,0.00019104,2]
[370066258,1751872278704,-460.0,0.00019105,2]
[370066259,1751872278713,-460.0,0.00019105,2]
[370066260,1751872278723,-460.0,0.00019105,2]
[370066261,1751872278732,-460.0,0.00019105,2]
[370066262,1751872278741,-465.7104665,0.00019105,2]
[370066263,1751872278750,-460.0,0.00019105,2]
[370066264,1751872278759,-460.0,0.00019105,2]
[370066265,1751872278769,-460.0,0.00019105,2]
[370066266,1751872278778,-460.0,0.00019105,2]
[370066267,1751872278787,-460.0,0.00019105,2]
[370066268,1751872278796,-460.0,0.00019105,2]
[370066269,1751872278806,-460.0,0.00019105,2]
[370066270,1751872278815,-460.0,0.00019105,2]
[370066271,1751872278824,-460.0,0.00019105,2]
[370066272,1751872278833,-460.0,0.00019105,2]
[370066273,1751872278843,-460.0,0.00019105,2]
[370066274,1751872278852,-460.0,0.00019105,2]
[370066275,1751872278861,-460.0,0.00019105,2]
[370066276,1751872278870,-460.0,0.00019105,2]
[370066277,1751872278879,-460.0,0.00019105,2]
[370066278,1751872278888,-460.0,0.00019105,2]
[370066279,1751872278898,-460.0,0.00019105,2]
[370066280,1751872278908,-460.0,0.00019105,2]
[370066281,1751872278918,-460.0,0.00019105,2]
[370066282,1751872278927,-460.0,0.00019105,2]
[370066283,1751872278936,-500.0,0.00019133,2]
[370066284,1751872278946,-2234.27986924,0.00019164,2]
[370066285,1751872278955,-254.00738904,0.00019178,2]
[370066286,1751872278964,-505.872352,0.00019178,2]
[370066287,1751872278974,-666.0,0.00019178,2]
[370066288,1751872278983,-500.0,0.00019216,2]
[370066289,1751872278992,-1500.0,0.00019251,2]
[370066290,1751872279002,-1002.46667015,0.00019251,2]
[370066291,1751872279012,-460.0,0.00019277,2]
[370066292,1751872279023,-571.73654066,0.00019278,2]
[370066293,1751872279032,-460.0,0.00019278,2]
[370066294,1751872279042,-460.0,0.00019278,2]
[370066295,1751872279051,-460.0,0.00019278,2]
[370066296,1751872279061,-460.0,0.00019278,2]
[370066297,1751872279071,-460.0,0.00019278,2]
[370066298,1751872279081,-2426.09,0.00019278,2]
[370066299,1751872279091,-460.0,0.00019278,2]
[370066300,1751872279100,-460.0,0.00019279,2]
[370066301,1751872279110,-3255.33,0.00019279,2]
[370066302,1751872279120,-1250.0,0.00019279,2]
[370066303,1751872279129,-460.0,0.00019279,2]
[370066304,1751872279139,-460.0,0.00019279,2]
[370066305,1751872279150,-460.0,0.00019279,2]
[370066306,1751872279159,-2036.66,0.00019279,2]
[370066307,1751872279169,-460.0,0.00019279,2]
[370066308,1751872279179,-460.0,0.00019279,2]
[370066309,1751872279189,-2229.51,0.00019279,2]
[370066310,1751872279198,-460.0,0.00019279,2]
[370066311,1751872279207,-460.0,0.00019279,2]
[370066312,1751872279217,-460.0,0.00019279,2]
[370066313,1751872279227,-460.0,0.00019279,2]
[370066314,1751872279240,-460.0,0.00019279,2]
[370066315,1751872279249,-3069.19,0.00019279,2]
[370066316,1751872279259,-4160.38,0.00019279,2]
[370066317,1751872279268,-460.0,0.00019279,2]
[370066318,1751872279279,-460.0,0.00019279,2]
[370066319,1751872279288,-1901.73,0.00019279,2]
[370066320,1751872279297,-460.0,0.00019279,2]
[370066321,1751872279307,-688.84,0.00019279,2]
[370066322,1751872279316,-719.39,0.00019279,2]
[370066323,1751872279327,-460.0,0.00019279,2]
[370066324,1751872279337,-1786.66037365,0.00019279,2]
[370066325,1751872279346,-460.0,0.0001928,2]
[370066326,1751872279355,-460.0,0.0001928,2]
[370066327,1751872279367,-460.0,0.0001928,2]
[370066328,1751872279376,-460.0,0.0001928,2]
[370066329,1751872279386,-460.0,0.0001928,2]
[370066330,1751872279395,-460.0,0.0001928,2]
[370066331,1751872279405,-460.0,0.0001928,2]
[370066332,1751872279416,-460.0,0.0001928,2]
[370066333,1751872279426,-460.0,0.0001928,2]
[370066334,1751872279437,-460.0,0.0001928,2]
[370066335,1751872279446,-460.0,0.0001928,2]
[370066336,1751872279456,-460.0,0.0001928,2]
[370066337,1751872279465,-460.0,0.0001928,2]
[370066338,1751872279475,-460.0,0.0001928,2]
[370066339,1751872279484,-460.0,0.0001928,2]
[370066340,1751872279493,-460.0,0.0001928,2]
[370066341,1751872279503,-460.0,0.0001928,2]
[370066342,1751872279514,-460.0,0.0001928,2]
[370066343,1751872279524,-460.0,0.0001928,2]
[370066344,1751872279534,-460.0,0.0001928,2]
[370066345,1751872279543,-460.0,0.0001928,2]
[370066346,1751872279553,-460.0,0.0001928,2]
[370066347,1751872279563,-460.0,0.0001928,2]
[370066348,1751872279573,-151.0,0.0001928,2]
[370066349,1751872279585,-460.0,0.0001928,2]
[370066350,1751872279596,-151.455126,0.0001928,2]
[370066351,1751872279607,-460.0,0.0001928,2]
[370066352,1751872279616,-209.216977,0.0001928,2]
[370066353,1751872279625,-460.0,0.0001928,2]
[370066354,1751872279635,-526.13,0.0001928,2]
[370066355,1751872279644,-151.0,0.0001928,2]
[370066356,1751872279654,-265.3335377,0.0001928,2]
[370066357,1751872279663,-460.0,0.0001928,2]
[370066358,1751872279674,-460.0,0.0001928,2]
[370066359,1751872279685,-151.0,0.0001928,2]
[370066360,1751872279695,-460.0,0.0001928,2]
[370066361,1751872279707,-151.0,0.0001928,2]
[370066362,1751872279717,-265.977912,0.0001928,2]
[370066363,1751872279728,-460.0,0.0001928,2]
[370066364,1751872279738,-460.0,0.0001928,2]
[370066365,1751872279747,-265.977912,0.0001928,2]
[370066366,1751872279756,-494.42,0.0001928,2]
[370066367,1751872279766,-521.54,0.0001928,2]
[370066368,1751872279775,-460.0,0.0001928,2]
[370066369,1751872279784,-460.0,0.0001928,2]
[370066370,1751872279794,-460.0,0.0001928,2]
[370066371,1751872279803,-460.0,0.0001928,2]
[370066372,1751872279812,-528.0972067,0.0001928,2]
[370066373,1751872279822,-460.0,0.0001928,2]
[370066374,1751872279832,-163.3546841,0.0001928,2]
[370066375,1751872279841,-460.0,0.0001928,2]
[370066376,1751872279850,-836.61,0.0001928,2]
[370066377,1751872279860,-460.0,0.0001928,2]
[370066378,1751872279870,-185.981458,0.0001928,2]
[370066379,1751872279883,-185.981458,0.0001928,2]
[370066380,1751872279893,-460.0,0.0001928,2]
[370066381,1751872279903,-460.0,0.0001928,2]
[370066382,1751872279912,-588.3,0.0001928,2]
[370066383,1751872279922,-460.0,0.0001928,2]
[370066384,1751872279932,-460.0,0.0001928,2]
[370066385,1751872279943,-460.0,0.0001928,2]
[370066386,1751872279953,-533.76,0.0001928,2]
[370066387,1751872279963,-460.0,0.0001928,2]
[370066388,1751872279972,-460.0,0.0001928,2]
[370066389,1751872279982,-827.94,0.0001928,2]
[370066390,1751872279992,-528.63,0.0001928,2]
[370066391,1751872280002,-460.0,0.0001928,2]
[370066392,1751872280012,-589.98,0.0001928,2]
[370066393,1751872280022,-460.0,0.0001928,2]
[370066394,1751872280032,-460.0,0.0001928,2]
[370066395,1751872280042,-460.0,0.0001928,2]
[370066396,1751872280051,-550.42980861,0.0001928,2]
[370066397,1751872280064,-988.83,0.0001928,2]
[370066398,1751872280074,-460.0,0.0001928,2]
[370066399,1751872280084,-460.0,0.0001928,2]
[370066400,1751872280094,-460.0,0.0001928,2]
[370066401,1751872280103,-2527.87,0.0001928,2]
[370066402,1751872280113,-460.0,0.0001928,2]
[370066403,1751872280123,-460.0,0.0001928,2]
[370066404,1751872280132,-460.0,0.0001928,2]
[370066405,1751872280141,-824.25,0.0001928,2]
[370066406,1751872280151,-460.0,0.0001928,2]
[370066407,1751872280160,-460.0,0.0001928,2]
[370066408,1751872280170,-460.0,0.0001928,2]
[370066409,1751872280180,-460.0,0.0001928,2]
[370066410,1751872280189,-460.0,0.00019281,2]
[370066411,1751872280199,-460.0,0.00019281,2]
[370066412,1751872280208,-460.0,0.00019281,2]
[370066413,1751872280217,-460.0,0.00019281,2]
[370066414,1751872280228,-460.0,0.00019281,2]
[370066415,1751872280242,-460.0,0.00019281,2]
[370066416,1751872280251,-479.1,0.00019281,2]
[370066417,1751872280261,-460.0,0.00019281,2]
[370066418,1751872280270,-460.0,0.00019281,2]
[370066419,1751872280280,-5512.72,0.00019281,2]
[370066420,1751872280290,-460.0,0.00019281,2]
[370066421,1751872280300,-1343.56,0.00019281,2]
[370066422,1751872280309,-460.0,0.00019281,2]
[370066423,1751872280321,-460.0,0.00019281,2]
[370066424,1751872280331,-494.83,0.00019281,2]
[370066425,1751872280345,-460.0,0.00019281,2]
[370066426,1751872280354,-542.7,0.00019281,2]
[370066427,1751872280364,-673.69,0.00019281,2]
[370066428,1751872280373,-500.0,0.00019284,2]
[370066429,1751872280383,-575.53782964,0.00019284,2]
[370066430,1751872280394,-500.0,0.00019284,2]
[370066431,1751872280405,-500.0,0.00019284,2]
[370066432,1751872280415,-500.0,0.00019284,2]
[370066433,1751872280425,-500.0,0.00019284,2]
[370066434,1751872280436,-502.04557851,0.00019284,2]
[370066435,1751872280446,-1151.2706962,0.00019287,2]
[370066436,1751872280455,-1500.0,0.00019287,2]
[370066437,1751872280464,-500.0,0.000193,2]
[370066438,1751872280474,-1000.0,0.00019328,2]
[370066439,1751872280484,-500.93316458,0.00019328,2]
[370066440,1751872280493,-151.0,0.00019329,2]
[370066441,1751872280502,-151.0,0.00019329,2]
[370066442,1751872280512,-419.66462,0.00019329,2]
[370066443,1751872280521,-419.66462,0.00019329,2]
[370066444,1751872280531,-100000.0,0.00019329,2]
[370066445,1751872280540,-2500.0,0.00019364,2]
[370066446,1751872280549,-1000.0,0.00019364,2]
[370066447,1751872280559,-460.0,0.00019374,2]
[370066448,1751872280569,-241.98647851,0.00019374,2]
[370066449,1751872280578,-460.0,0.00019374,2]
[370066450,1751872280587,-462.67,0.00019374,2]
[370066451,1751872280597,-460.0,0.00019374,2]
[370066452,1751872280606,-460.0,0.00019374,2]
[370066453,1751872280615,-460.0,0.00019374,2]
[370066454,1751872280625,-460.0,0.00019374,2]
[370066455,1751872280634,-460.0,0.00019374,2]
[370066456,1751872280643,-551.94,0.00019374,2]
[370066457,1751872280652,-460.0,0.00019374,2]
[370066458,1751872280661,-460.0,0.00019374,2]
[370066459,1751872280670,-460.0,0.00019374,2]
[370066460,1751872280680,-460.0,0.00019374,2]
[370066461,1751872280689,-634.6,0.00019374,2]
[370066462,1751872280698,-460.0,0.00019374,2]
[370066463,1751872280707,-460.0,0.00019374,2]
[370066464,1751872280716,-460.0,0.00019374,2]
[370066465,1751872280726,-460.0,0.00019374,2]
[370066466,1751872280735,-460.0,0.00019374,2]
[370066467,1751872280744,-460.0,0.00019374,2]
[370066468,1751872280754,-460.0,0.00019374,2]
[370066469,1751872280763,-460.0,0.00019374,2]
[370066470,1751872280772,-784.92,0.00019374,2]
[370066471,1751872280781,-460.0,0.00019374,2]
[370066472,1751872280790,-460.0,0.00019374,2]
[370066473,1751872280799,-460.0,0.00019374,2]
[370066474,1751872280808,-220.85100058,0.00019375,2]
[370066475,1751872280818,-460.0,0.00019375,2]
[370066476,1751872280827,-460.0,0.00019375,2]
[370066477,1751872280837,-151.0,0.00019375,2]
[370066478,1751872280846,-288.051789,0.00019375,2]
[370066479,1751872280855,-288.051789,0.00019375,2]
[370066480,1751872280864,-151.0,0.00019375,2]
[370066481,1751872280873,-170.968478,0.00019375,2]
[370066482,1751872280882,-153.685143,0.00019375,2]
[370066483,1751872280891,-151.0,0.00019375,2]
[370066484,1751872280900,-280.06036,0.00019375,2]
[370066485,1751872280910,-151.0,0.00019375,2]
[370066486,1751872280919,-280.06036,0.00019375,2]
[370066487,1751872280929,-460.0,0.00019376,2]
[370066488,1751872280938,-460.0,0.00019376,2]
[370066489,1751872280948,-460.0,0.00019376,2]
[370066490,1751872280957,-232.14,0.00019376,2]
[370066491,1751872280966,-150.6,0.00019376,2]
[370066492,1751872280976,-460.0,0.00019376,2]
[370066493,1751872280985,-460.0,0.00019376,2]
[370066494,1751872280995,-1773.24,0.00019376,2]
[370066495,1751872281005,-460.0,0.00019376,2]
[370066496,1751872281014,-151.0,0.00019376,2]
[370066497,1751872281023,-151.0,0.00019376,2]
[370066498,1751872281033,-460.0,0.00019378,2]
[370066499,1751872281043,-346.61493168,0.00019378,2]
[370066500,1751872281052,-460.0,0.00019378,2]
[370066501,1751872281061,-460.0,0.00019378,2]
[370066502,1751872281072,-460.0,0.00019378,2]
[370066503,1751872281081,-460.0,0.00019378,2]
[370066504,1751872281090,-1275.37,0.00019378,2]
[370066505,1751872281100,-460.0,0.00019378,2]
[370066506,1751872281109,-460.0,0.00019378,2]
[370066507,1751872281119,-460.0,0.00019378,2]
[370066508,1751872281129,-2407.95,0.00019378,2]
[370066509,1751872281138,-460.0,0.00019378,2]
[370066510,1751872281147,-460.0,0.00019378,2]
[370066511,1751872281156,-1160.62,0.00019378,2]
[370066512,1751872281166,-460.0,0.00019378,2]
[370066513,1751872281176,-2007.9,0.00019378,2]
[370066514,1751872281185,-1039.66,0.00019378,2]
[370066515,1751872281195,-460.0,0.00019378,2]
[370066516,1751872281205,-6036.19,0.00019378,2]
[370066517,1751872281214,-460.0,0.00019378,2]
[370066518,1751872281224,-460.0,0.00019379,2]
[370066519,1751872281237,-460.0,0.00019379,2]
[370066520,1751872281246,-460.0,0.00019379,2]
[370066521,1751872281255,-460.0,0.00019379,2]
[370066522,1751872281265,-460.0,0.00019379,2]
[370066523,1751872281275,-460.0,0.00019379,2]
[370066524,1751872281284,-469.65868028,0.00019379,2]
[370066525,1751872281293,-460.0,0.00019379,2]
[370066526,1751872281305,-460.0,0.00019379,2]
[370066527,1751872281314,-460.0,0.00019379,2]
[370066528,1751872281324,-460.0,0.00019379,2]
[370066529,1751872281333,-460.0,0.00019379,2]
[370066530,1751872281343,-460.0,0.00019379,2]
[370066531,1751872281352,-460.0,0.00019379,2]
[370066532,1751872281361,-460.0,0.00019379,2]
[370066533,1751872281370,-460.0,0.00019379,2]
[370066534,1751872281380,-460.0,0.00019379,2]
[370066535,1751872281390,-460.0,0.00019379,2]
[370066536,1751872281399,-460.0,0.00019379,2]
[370066537,1751872281409,-460.0,0.00019379,2]
[370066538,1751872281419,-460.0,0.00019379,2]
[370066539,1751872281429,-460.0,0.00019379,2]
[370066540,1751872281438,-460.0,0.00019379,2]
[370066541,1751872281447,-500.0,0.00019384,2]
[370066542,1751872281457,-1000.0,0.00019438,2]
[370066543,1751872281466,-1000.0,0.00019438,2]
[370066544,1751872281475,-1000.0,0.00019438,2]
[370066545,1751872281485,-1000.0,0.00019438,2]
[370066546,1751872281494,-549.35078687,0.00019438,2]
[370066547,1751872281504,-1000.0,0.00019438,2]
[370066548,1751872281513,-1000.0,0.00019438,2]
[370066549,1751872281523,-1000.0,0.00019438,2]
[370066550,1751872281532,-1000.0,0.00019438,2]
[370066551,1751872281542,-344.47120329,0.00019438,2]
[370066552,1751872281551,-553.39917828,0.00019438,2]
[370066553,1751872281561,-1000.0,0.00019438,2]
[370066554,1751872281570,-1000.0,0.00019438,2]
[370066555,1751872281580,-1000.0,0.00019438,2]
[370066556,1751872281700,-1000.0,0.00019438,2]
[370066557,1751872281727,-426.021997,0.00019459,2]
[370066558,1751872281737,-500.0,0.00019468,2]
[370066559,1751872281746,-460.0,0.00019551,2]
[370066560,1751872281756,-500.0,0.00019551,2]
[370066561,1751872281766,-549.33,0.00019552,2]
[370066562,1751872281775,-460.0,0.00019552,2]
[370066563,1751872281785,-460.0,0.00019552,2]
[370066564,1751872281794,-460.0,0.00019552,2]
[370066565,1751872281803,-460.0,0.00019552,2]
[370066566,1751872281813,-2426.09,0.00019552,2]
[370066567,1751872281823,-460.0,0.00019552,2]
[370066568,1751872281832,-460.0,0.00019553,2]
[370066569,1751872281842,-3255.33,0.00019553,2]
[370066570,1751872281852,-1250.0,0.00019553,2]
[370066571,1751872281861,-570.13,0.00019553,2]
[370066572,1751872281871,-460.0,0.00019553,2]
[370066573,1751872281880,-460.0,0.00019553,2]
[370066574,1751872281889,-2036.66,0.00019553,2]
[370066575,1751872281899,-460.0,0.00019553,2]
[370066576,1751872281909,-460.0,0.00019553,2]
[370066577,1751872281919,-2229.51,0.00019553,2]
[370066578,1751872281928,-460.0,0.00019553,2]
[370066579,1751872281937,-460.0,0.00019553,2]
[370066580,1751872281946,-460.0,0.00019553,2]
[370066581,1751872281955,-460.0,0.00019553,2]
[370066582,1751872281965,-3069.19,0.00019553,2]
[370066583,1751872281974,-2800.46703769,0.00019553,2]
[370066584,1751872282104,-621.77222602,0.00019553,2]
[370066585,1751872282116,-474.14796683,0.00019553,2]
[370066586,1751872282686,-460.0,0.00016811,2]
[370066587,1751872282695,-460.0,0.00016812,2]
[370066588,1751872282705,-460.0,0.00016815,2]
[370066589,1751872282714,-460.0,0.00017085,2]
[370066590,1751872282723,-460.0,0.00017089,2]
[370066591,1751872282733,-460.0,0.00017359,2]
[370066592,1751872282742,-460.0,0.00017363,2]
[370066593,1751872282752,-460.0,0.00017633,2]
[370066594,1751872282761,-460.0,0.00017636,2]
[370066595,1751872282769,-460.0,0.00017637,2]
[370066596,1751872282779,-460.0,0.0001773,2]
[370066597,1751872282788,-563.07475524,0.00017907,2]
[370066598,1751872282797,-460.0,0.0001791,2]
[370066599,1751872282806,-460.0,0.00017911,2]
[370066600,1751872282817,-460.0,0.00018004,2]
[370066601,1751872282827,-460.0,0.00018184,2]
[370066602,1751872282836,-505.04707437,0.00018184,2]
[370066603,1751872282845,-460.0,0.00018278,2]
[370066604,1751872282855,-460.0,0.00018552,2]
[370066605,1751872282864,-460.0,0.00018826,2]
[370066606,1751872282875,-426.021997,0.00018826,2]
[370066607,1751872282885,-460.0,0.000191,2]
[370066608,1751872282896,-460.0,0.00019374,2]
[370066609,1751872282906,-426.021997,0.00019459,2]
[370066610,1751872282915,-263.99276946,0.00019553,2]
[370066611,1751872282924,-460.0,0.00019553,2]
[370066612,1751872282935,-460.0,0.00019553,2]
[370066613,1751872282944,-1901.73,0.00019553,2]
[370066614,1751872282953,-460.0,0.00019553,2]
[370066615,1751872282964,-434.11140693,0.00019553,2]
[370066616,1751872282976,-254.72859307,0.00019553,2]
[370066617,1751872282986,-719.39,0.00019553,2]
[370066618,1751872282996,-460.0,0.00019553,2]
[370066619,1751872283006,-460.0,0.00019554,2]
[370066620,1751872283015,-247.52840105,0.00019554,2]
[370066621,1751872283028,-212.47159895,0.00019554,2]
[370066622,1751872283038,-460.0,0.00019554,2]
[370066623,1751872283047,-552.93,0.00019554,2]
[370066624,1751872283057,-460.0,0.00019554,2]
[370066625,1751872283066,-460.0,0.00019554,2]
[370066626,1751872283078,-460.0,0.00019554,2]
[370066627,1751872283088,-460.0,0.00019554,2]
[370066628,1751872283098,-460.0,0.00019554,2]
[370066629,1751872283107,-460.0,0.00019554,2]
[370066630,1751872283117,-460.0,0.00019554,2]
[370066631,1751872283126,-460.0,0.00019554,2]
[370066632,1751872283136,-460.0,0.00019554,2]
[370066633,1751872283146,-187.26529469,0.00019554,2]
[370066634,1751872283158,-272.73470531,0.00019554,2]
[370066635,1751872283167,-258.90601269,0.00019554,2]
[370066636,1751872283178,-201.09398731,0.00019554,2]
[370066637,1751872283188,-460.0,0.00019554,2]
[370066638,1751872283197,-460.0,0.00019554,2]
[370066639,1751872283206,-460.0,0.00019554,2]
[370066640,1751872283216,-460.0,0.00019554,2]
[370066641,1751872283228,-470.51073333,0.00019554,2]
[370066642,1751872283241,-154.92002618,0.00019554,2]
[370066643,1751872283424,-305.07997382,0.00019554,2]
[370066644,1751872283435,-460.0,0.00019554,2]
[370066645,1751872283445,-447.86584177,0.00019554,2]
[370066646,1751872283703,-460.0,0.00016814,2]
[370066647,1751872283714,-460.0,0.00016912,2]
[370066648,1751872283724,-460.0,0.00016912,2]
[370066649,1751872283734,-460.0,0.00017088,2]
[370066650,1751872283743,-460.0,0.00017186,2]
[370066651,1751872283753,-460.0,0.00017362,2]
[370066652,1751872283762,-460.0,0.0001746,2]
[370066653,1751872283772,-465.05541226,0.00017636,2]
[370066654,1751872283781,-460.0,0.00018185,2]
[370066655,1751872283790,-268.16421843,0.00018458,2]
[370066656,1751872283800,-460.0,0.00018459,2]
[370066657,1751872283809,-460.0,0.00018733,2]
[370066658,1751872283818,-561.933138,0.00018826,2]
[370066659,1751872283827,-460.0,0.00019007,2]
[370066660,1751872283837,-460.0,0.00019281,2]
[370066661,1751872283846,-561.933138,0.00019459,2]
[370066662,1751872283856,-12.13415823,0.00019554,2]
[370066663,1751872283865,-460.0,0.00019554,2]
[370066664,1751872283875,-460.0,0.00019554,2]
[370066665,1751872283887,-460.0,0.00019554,2]
[370066666,1751872283899,-460.0,0.00019554,2]
[370066667,1751872283909,-460.0,0.00019554,2]
[370066668,1751872283919,-460.0,0.00019554,2]
[370066669,1751872283928,-436.73,0.00019554,2]
[370066670,1751872283938,-494.42,0.00019554,2]
[370066671,1751872283947,-312.02494386,0.00019554,2]
[370066673,1751872308728,349657.94893148,0.00016714,2]
[370066674,1751872359972,5523.9261415,0.00025421,120]
[370066675,1751872371299,251.1101281,0.00027397,120]
[370066676,1751872383397,150.26252038,0.00016711,2]
[370066677,1751872383794,150.26252038,0.00016712,2]
[370066678,1751872714720,550.77574017,0.00016711,2]
[370066679,1751872738807,16660.5,0.00025391,60]
[370066680,1751872838785,222.002876,0.00015813,2]
[370066681,1751872969301,165.456041,0.00013699,2]
[370066683,1751873005859,1036.0,0.00025378,60]
[370066684,1751873064766,481.92877264,0.0001671,2]
[370066685,1751873118238,433.76998924,0.00016714,2]
[370066686,1751873142179,-292.68,0.00016804,3]
[370066687,1751873142204,-467.66471677,0.00016804,3]
[370066688,1751873191100,-153.41486085,0.00016804,3]
[370066693,1751873254094,-257.01042238,0.00016804,3]
[370066694,1751873254117,-240.55472552,0.00016808,2]
[370066695,1751873266627,24900.0,0.00015813,2]
[370066696,1751873312667,4968.72603573,0.00027397,120]
[370066697,1751873313296,153.44818953,0.00016708,2]
[370066698,1751873323916,187.890509,0.00025385,120]
[370066703,1751873348169,-300.0,0.00016807,2]
[370066704,1751873348194,-111.6,0.00016808,2]
[370066705,1751873356194,-202.84527448,0.00016808,2]
[370066706,1751873356221,-460.0,0.00016808,2]
[370066707,1751873356246,-87.07244702,0.00016808,2]
[370066708,1751873358101,-372.92755298,0.00016808,2]
[370066709,1751873358124,-460.0,0.00016808,2]
[370066710,1751873358146,-460.0,0.00016808,2]
[370066711,1751873358168,-460.0,0.00016808,2]
[370066712,1751873358191,-460.0,0.00016808,2]
[370066713,1751873358213,-460.0,0.00016808,2]
[370066714,1751873358236,-833.33,0.00016808,2]
[370066715,1751873358259,-314.73083684,0.00016808,2]
[370066757,1751873431893,-145.26916316,0.00016808,2]
[370066758,1751873431903,-460.0,0.00016808,2]
[370066759,1751873431913,-460.0,0.00016808,2]
[370066760,1751873431922,-460.0,0.00016808,2]
[370066761,1751873431931,-150.02127615,0.00016808,2]
[370066767,1751873437919,-309.97872385,0.00016808,2]
[370066769,1751873437929,-460.0,0.00016808,2]
[370066770,1751873437939,-460.0,0.00016808,2]
[370066772,1751873437949,-460.0,0.00016808,2]
[370066773,1751873437958,-460.0,0.00016808,2]
[370066774,1751873437967,-460.0,0.00016808,2]
[370066775,1751873437976,-460.0,0.00016808,2]